fUST/lending_fUST_20251022
["ID","MTS","AMOUNT","RATE_DAILY","PERIOD"]
[392016068,1761102638609,-2164.0,0.00026491,2]
[392016069,1761102638618,-411.0,0.00026491,2]
[392016070,1761102638627,-429.892,0.00026491,2]
[392016071,1761102638637,-215.0,0.00026491,2]
[392016072,1761102638648,-502.66916721,0.000265,2]
[392016073,1761102638657,-503.10569259,0.000265,2]
[392016074,1761102638667,-457.40650221,0.00026505,2]
[392016075,1761102638681,-2000.0,0.00026516,2]
[392016076,1761102638691,-2000.0,0.00026516,2]
[392016077,1761102638700,-168.0,0.00026538,2]
[392016078,1761102638710,-632.0,0.00026587,2]
[392016079,1761102638723,-983.0,0.00026587,2]
[392016080,1761102638732,-420.0,0.00026639,2]
[392016081,1761102638742,-1680.0,0.0002676,2]
[392016082,1761102638752,-168.0,0.00026786,2]
[392016083,1761102638763,-168.0,0.00026801,2]
[392016084,1761102638772,-168.0,0.00026821,2]
[392016085,1761102638782,-196.34218594,0.00026821,2]
[392016086,1761102638793,-597.77637791,0.00026821,2]
[392016087,1761102638803,-500.0,0.00026872,5]
[392016088,1761102638813,-260.0,0.00026872,2]
[392016089,1761102638823,-168.0,0.0002704,2]
[392016090,1761102638832,-168.0,0.0002704,2]
[392016091,1761102638842,-2500.0,0.00027064,2]
[392016092,1761102638852,-2500.0,0.00027064,2]
[392016093,1761102638861,-433.51695147,0.00027119,2]
[392016094,1761102638872,-168.0,0.00027183,2]
[392016095,1761102638881,-1940.16328,0.00027229,2]
[392016096,1761102638893,-168.0,0.00027274,2]
[392016097,1761102638903,-1019.27,0.00027287,2]
[392016098,1761102638912,-259.44257862,0.00027295,2]
[392016099,1761102638923,-500.0,0.0002742,15]
[392016100,1761102638933,-360.0,0.0002742,2]
[392016101,1761102638943,-168.0,0.00027425,2]
[392016102,1761102638952,-168.0,0.00027431,2]
[392016103,1761102638962,-1940.16328,0.00027532,2]
[392016104,1761102638971,-396.78188825,0.00027571,2]
[392016105,1761102638981,-168.0,0.00027601,2]
[392016106,1761102638991,-935.86530428,0.00027612,5]
[392016107,1761102639002,-3000.0,0.00027612,5]
[392016108,1761102639012,-199.0,0.00027671,7]
[392016109,1761102639021,-168.0,0.00027676,2]
[392016110,1761102639032,-720.0,0.0002769,30]
[392016111,1761102639045,-1940.16328,0.00027768,2]
[392016112,1761102639055,-160.0,0.00027799,3]
[392016113,1761102639065,-28620.1798623,0.00027906,2]
[392016114,1761102639074,-151.0,0.00027916,2]
[392016115,1761102639084,-199.0,0.00027945,8]
[392016116,1761102639094,-500.0,0.00027968,15]
[392016117,1761102639103,-460.0,0.00027968,2]
[392016118,1761102639114,-484.18776398,0.00028119,2]
[392016119,1761102639124,-3500.0,0.0002816,5]
[392016120,1761102639135,-151.0,0.00028173,30]
[392016121,1761102639147,-151.0,0.00028173,30]
[392016122,1761102639157,-1940.16328,0.00028193,2]
[392016123,1761102639167,-199.0,0.00028219,9]
[392016124,1761102639177,-1940.16328,0.00028284,2]
[392016125,1761102639188,-457.40650221,0.0002843,2]
[392016126,1761102639198,-199.0,0.00028493,10]
[392016127,1761102639208,-14837.2,0.000285,7]
[392016128,1761102639218,-500.0,0.00028516,15]
[392016129,1761102639228,-560.0,0.00028516,2]
[392016130,1761102639238,-653.863524,0.00028585,7]
[392016131,1761102639248,-349.46084,0.00028585,7]
[392016132,1761102639257,-1940.16328,0.00028708,2]
[392016133,1761102639266,-4000.0,0.00028708,5]
[392016134,1761102639275,-1500.0,0.00028767,15]
[392016135,1761102639284,-1500.0,0.00028767,15]
[392016136,1761102639293,-1500.0,0.00028767,15]
[392016137,1761102639303,-1564.79771143,0.00028767,15]
[392016138,1761102639313,-250.0,0.00028767,2]
[392016139,1761102639322,-250.0,0.00028767,2]
[392016140,1761102639331,-250.0,0.00028767,2]
[392016141,1761102639341,-250.0,0.00028767,2]
[392016142,1761102639350,-250.0,0.00028767,2]
[392016143,1761102639360,-250.0,0.00028767,2]
[392016144,1761102639374,-250.0,0.00028767,2]
[392016145,1761102639383,-250.0,0.00028767,2]
[392016146,1761102639395,-250.0,0.00028767,2]
[392016147,1761102639404,-199.0,0.00028767,11]
[392016148,1761102639414,-587.0,0.00028871,2]
[392016149,1761102639425,-160.0,0.00028933,2]
[392016150,1761102639434,-160.0,0.00028933,2]
[392016151,1761102639443,-403.14601822,0.00028933,2]
[392016152,1761102639452,-1018.46,0.00029,2]
[392016153,1761102639461,-1940.16328,0.00029027,2]
[392016154,1761102639470,-199.0,0.00029041,12]
[392016155,1761102639479,-500.0,0.00029064,15]
[392016156,1761102639489,-660.0,0.00029064,2]
[392016157,1761102639499,-150.0,0.00029066,2]
[392016158,1761102639508,-534.85857649,0.00029119,2]
[392016159,1761102639518,-2125.1472449,0.00029174,2]
[392016160,1761102639527,-7855.9782019,0.00029174,2]
[392016161,1761102639537,-1018.46,0.00029174,2]
[392016162,1761102639547,-3140.2129019,0.00029174,2]
[392016163,1761102639557,-1940.16328,0.00029203,2]
[392016164,1761102639567,-2016.77699195,0.00029256,5]
[392016165,1761102639579,-199.0,0.00029315,13]
[392016166,1761102639589,-1018.46,0.00029348,2]
[392016167,1761102639599,-4361.0890193,0.00029363,2]
[392016168,1761102639609,-160.0,0.00029372,4]
[392016169,1761102639619,-1940.16328,0.00029471,2]
[392016170,1761102639628,-2164.0,0.00029491,2]
[392016171,1761102639638,-411.0,0.00029491,2]
[392016172,1761102639649,-206.475278,0.0002956,2]
[392016173,1761102639658,-632.0,0.00029587,2]
[392016174,1761102639668,-983.0,0.00029587,2]
[392016175,1761102639677,-199.0,0.00029589,14]
[392016176,1761102639687,-151.0,0.00029589,30]
[392016177,1761102639696,-151.0,0.00029589,30]
[392016178,1761102639705,-500.0,0.00029612,15]
[392016179,1761102639718,-760.0,0.00029612,2]
[392016180,1761102639727,-708.4077446,0.00029757,2]
[392016181,1761102639738,-1940.16335,0.00029766,2]
[392016182,1761102639747,-500.46,0.00029785,2]
[392016183,1761102639759,-653.863524,0.00029845,28]
[392016184,1761102639769,-349.46084,0.00029845,28]
[392016185,1761102639779,-199.0,0.00029863,15]
[392016186,1761102639790,-230.43611005,0.000299,5]
[392016187,1761102639800,-151.0,0.0002999,30]
[392016188,1761102639811,-162.76498,0.0002999,30]
[392016189,1761102639821,-4136.82758065,0.0003,2]
[392016190,1761102639832,-193.49084309,0.0003,2]
[392016191,1761102639842,-350.84919227,0.0003,4]
[392016192,1761102639853,-185.245,0.0003,2]
[392016193,1761102639863,-247.0885,0.0003,2]
[392016194,1761102639874,-1000.0,0.0003,5]
[392016195,1761102639885,-202.96329083,0.0003,2]
[392016196,1761102639896,-160.0,0.00030023,8]
[392016197,1761102639905,-200.0,0.000301,7]
[392016198,1761102639915,-300.0,0.000301,11]
[392016199,1761102639924,-300.0,0.000301,11]
[392016200,1761102639935,-300.0,0.000301,11]
[392016201,1761102639945,-300.0,0.000301,11]
[392016203,1761102639955,-300.0,0.000301,11]
[392016205,1761102639964,-300.0,0.000301,11]
[392016207,1761102639974,-300.0,0.000301,11]
[392016209,1761102639984,-300.0,0.000301,11]
[392016211,1761102639993,-300.0,0.000301,11]
[392016213,1761102640003,-300.0,0.000301,11]
[392016215,1761102640013,-300.0,0.000301,11]
[392016217,1761102640022,-300.0,0.000301,11]
[392016219,1761102640032,-300.0,0.000301,11]
[392016221,1761102640043,-300.0,0.000301,11]
[392016223,1761102640053,-300.0,0.000301,11]
[392016225,1761102640062,-300.0,0.000301,11]
[392016227,1761102640072,-200.0,0.000301,11]
[392016229,1761102640083,-585.529389,0.00030119,2]
[392016231,1761102640092,-52424.29169961,0.0003012,7]
[392016232,1761102640102,-285.64473061,0.0003013,2]
[392016233,1761102640112,-209.62,0.00030135,2]
[392016234,1761102640121,-209.62,0.00030135,2]
[392016235,1761102640131,-500.0,0.00030136,7]
[392016236,1761102640141,-2000.03,0.00030136,7]
[392016237,1761102640151,-500.0,0.00030136,7]
[392016238,1761102640160,-183.29365214,0.00030136,7]
[392016239,1761102640170,-500.0,0.00030136,2]
[392016240,1761102640179,-226.24860861,0.00030136,7]
[392016241,1761102640190,-375.71813837,0.00030136,7]
[392016242,1761102640199,-264.60020294,0.00030136,7]
[392016243,1761102640209,-580.53653119,0.00030136,7]
[392016244,1761102640219,-500.0,0.00030136,7]
[392016245,1761102640229,-216.010652,0.00030136,7]
[392016246,1761102640238,-277.60489427,0.00030136,7]
[392016247,1761102640248,-637.01184734,0.00030136,7]
[392016248,1761102640258,-500.0,0.00030136,7]
[392016249,1761102640267,-313.64460681,0.00030136,7]
[392016251,1761102640277,-209.67638246,0.00030136,7]
[392016253,1761102640287,-389.55112032,0.00030136,7]
[392016255,1761102640296,-189.0705972,0.00030136,7]
[392016257,1761102640306,-404.29224935,0.00030136,7]
[392016259,1761102640315,-299.27091136,0.00030136,7]
[392016261,1761102640324,-511.12356219,0.00030136,7]
[392016263,1761102640334,-500.0,0.00030136,7]
[392016265,1761102640344,-500.0,0.00030136,7]
[392016266,1761102640353,-263.59067899,0.00030136,7]
[392016268,1761102640363,-154.07727595,0.00030136,7]
[392016270,1761102640372,-287.29279828,0.00030136,7]
[392016272,1761102640381,-189.00685833,0.00030136,7]
[392016274,1761102640393,-647.95067007,0.00030136,7]
[392016276,1761102640403,-262.46704282,0.00030136,7]
[392016278,1761102640412,-500.0,0.00030136,2]
[392016280,1761102640422,-307.99473526,0.00030136,7]
[392016282,1761102640431,-228.31063172,0.00030136,7]
[392016284,1761102640441,-483.16155275,0.00030136,7]
[392016287,1761102640451,-424.64947043,0.00030136,7]
[392016289,1761102640460,-162.53702627,0.00030136,7]
[392016291,1761102640469,-372.42776992,0.00030136,7]
[392016293,1761102640478,-175.28761425,0.00030136,7]
[392016295,1761102640487,-194.42960717,0.00030136,7]
[392016311,1761102640642,-203.72529291,0.00030136,7]
[392016313,1761102640651,-343.23324087,0.00030136,7]
[392016315,1761102640660,-488.81145778,0.00030136,7]
[392016317,1761102640670,-500.0,0.00030136,7]
[392016319,1761102640680,-563.564554,0.00030136,7]
[392016321,1761102640690,-416.32949053,0.00030136,7]
[392016323,1761102640700,-327.87010895,0.00030136,7]
[392016325,1761102640710,-496.78538792,0.00030136,7]
[392016327,1761102640724,-501.67016466,0.00030136,7]
[392016329,1761102640733,-340.18308612,0.00030136,7]
[392016331,1761102640742,-228.42770342,0.00030136,7]
[392016333,1761102640751,-380.52774044,0.00030136,7]
[392016335,1761102640762,-200.0,0.00030136,7]
[392016337,1761102640771,-344.8076518,0.00030136,7]
[392016339,1761102640780,-296.41562232,0.00030136,7]
[392016341,1761102640792,-292.02711664,0.00030136,7]
[392016343,1761102640802,-187.76706673,0.00030136,7]
[392016345,1761102640811,-367.64494753,0.00030136,7]
[392016347,1761102640821,-382.99734782,0.00030136,7]
[392016349,1761102640831,-238.83272752,0.00030136,7]
[392016351,1761102640840,-422.20912532,0.00030136,7]
[392016353,1761102640850,-191.95108613,0.00030136,7]
[392016355,1761102640859,-171.63672984,0.00030136,7]
[392016357,1761102640868,-309.60701034,0.00030136,7]
[392016359,1761102640877,-196.82529899,0.00030136,7]
[392016361,1761102640886,-165.7571726,0.00030136,7]
[392016363,1761102640895,-386.76964962,0.00030136,7]
[392016365,1761102640904,-500.0,0.00030136,7]
[392016367,1761102640914,-296.63830845,0.00030136,7]
[392016369,1761102640923,-242.20811233,0.00030136,7]
[392016371,1761102640932,-398.28436685,0.00030136,7]
[392016373,1761102640942,-336.68656245,0.00030136,7]
[392016375,1761102640951,-322.91618899,0.00030136,7]
[392016377,1761102640961,-205.41868019,0.00030136,7]
[392016379,1761102640970,-500.0,0.00030136,7]
[392016381,1761102640981,-425.23018006,0.00030136,7]
[392016383,1761102640990,-195.40019124,0.00030136,7]
[392016385,1761102641000,-362.76359806,0.00030136,7]
[392016387,1761102641010,-222.15435582,0.00030136,7]
[392016389,1761102641019,-500.0,0.00030136,7]
[392016391,1761102641028,-361.9815455,0.00030136,7]
[392016393,1761102641037,-402.64096062,0.00030136,7]
[392016395,1761102641046,-361.77469277,0.00030136,7]
[392016397,1761102641055,-1000.0,0.00030136,2]
[392016399,1761102641064,-230.11669308,0.00030136,7]
[392016401,1761102641073,-201.9189294,0.00030136,7]
[392016403,1761102641083,-253.865749,0.00030136,7]
[392016405,1761102641093,-334.79924119,0.00030136,7]
[392016407,1761102641102,-349.41750686,0.00030136,7]
[392016409,1761102641111,-165.77753778,0.00030136,7]
[392016411,1761102641120,-228.85356341,0.00030136,7]
[392016413,1761102641129,-500.0,0.00030136,7]
[392016415,1761102641138,-351.92241953,0.00030136,7]
[392016417,1761102641148,-419.36870839,0.00030136,7]
[392016419,1761102641157,-207.2156789,0.00030136,7]
[392016421,1761102641166,-357.75164544,0.00030136,7]
[392016423,1761102641175,-426.38365562,0.00030136,7]
[392016425,1761102641184,-344.04213321,0.00030136,7]
[392016427,1761102641194,-397.04027071,0.00030136,7]
[392016429,1761102641205,-510.19784801,0.00030136,7]
[392016431,1761102641213,-163.06299538,0.00030136,7]
[392016433,1761102641223,-911.33,0.00030136,7]
[392016435,1761102641232,-360.20200319,0.00030136,7]
[392016437,1761102641241,-333.24413904,0.00030136,7]
[392016439,1761102641250,-411.71166528,0.00030136,7]
[392016441,1761102641259,-266.14660862,0.00030136,7]
[392016443,1761102641268,-405.15904943,0.00030136,7]
[392016445,1761102641277,-191.6044713,0.00030136,7]
[392016447,1761102641286,-434.32562797,0.00030136,7]
[392016449,1761102641295,-357.58399041,0.00030136,7]
[392016451,1761102641304,-362.19474942,0.00030136,7]
[392016453,1761102641313,-157.36464837,0.00030136,7]
[392016455,1761102641322,-398.66436583,0.00030136,7]
[392016457,1761102641332,-162.06073458,0.00030136,7]
[392016459,1761102641341,-500.0,0.00030136,7]
[392016461,1761102641350,-176.13463274,0.00030136,7]
[392016463,1761102641359,-1958.36,0.00030136,7]
[392016465,1761102641368,-327.20495866,0.00030136,7]
[392016467,1761102641377,-329.29971541,0.00030136,7]
[392016469,1761102641386,-162.57504482,0.00030136,7]
[392016471,1761102641396,-282.85812094,0.00030136,7]
[392016473,1761102641405,-450.04226646,0.00030136,7]
[392016475,1761102641414,-310.89209667,0.00030136,7]
[392016477,1761102641423,-242.05492627,0.00030136,7]
[392016479,1761102641432,-170.30839777,0.00030136,7]
[392016481,1761102641441,-151.0,0.00030136,30]
[392016483,1761102641450,-151.0,0.00030136,30]
[392016485,1761102641462,-356.01494777,0.00030136,7]
[392016487,1761102641471,-553.31947537,0.00030136,7]
[392016489,1761102641480,-197.8148428,0.00030136,7]
[392016490,1761102641490,-500.0,0.00030136,7]
[392016492,1761102641499,-500.0,0.00030136,6]
[392016495,1761102641508,-337.46184763,0.00030136,7]
[392016496,1761102641517,-164.55359768,0.00030136,7]
[392016498,1761102641526,-293.05659124,0.00030136,7]
[392016500,1761102641535,-199.52534277,0.00030136,7]
[392016502,1761102641545,-500.0,0.00030136,7]
[392016505,1761102641554,-599.10118725,0.00030136,7]
[392016507,1761102641563,-500.0,0.00030136,7]
[392016509,1761102641573,-578.66409647,0.00030136,7]
[392016510,1761102641582,-414.60225012,0.00030136,7]
[392016512,1761102641591,-347.38797321,0.00030136,7]
[392016514,1761102641600,-438.172577,0.00030136,7]
[392016516,1761102641609,-204.76256233,0.00030136,7]
[392016518,1761102641618,-500.0,0.00030136,7]
[392016520,1761102641627,-344.28543436,0.00030136,7]
[392016522,1761102641635,-413.59874406,0.00030136,7]
[392016524,1761102641645,-169.42139911,0.00030136,7]
[392016526,1761102641654,-209.98297603,0.00030136,7]
[392016528,1761102641664,-435.58932894,0.00030136,7]
[392016531,1761102641673,-446.22710663,0.00030136,7]
[392016532,1761102641682,-285.84973559,0.00030136,7]
[392016534,1761102641691,-350.53803323,0.00030136,7]
[392016536,1761102641700,-175.25191809,0.00030136,7]
[392016538,1761102641709,-229.8743254,0.00030136,7]
[392016540,1761102641724,-500.0,0.00030136,7]
[392016542,1761102641733,-3498.62,0.00030136,2]
[392016545,1761102641743,-418.23724513,0.00030136,7]
[392016546,1761102641752,-426.4351762,0.00030136,7]
[392016548,1761102641762,-224.74968221,0.00030136,7]
[392016551,1761102641772,-407.86393735,0.00030136,7]
[392016552,1761102641781,-164.2643105,0.00030136,7]
[392016555,1761102641792,-391.97531565,0.00030136,7]
[392016557,1761102641801,-401.43468633,0.00030136,7]
[392016559,1761102641810,-500.0,0.00030136,7]
[392016561,1761102641819,-193.19471656,0.00030136,7]
[392016563,1761102641829,-270.84547537,0.00030136,7]
[392016565,1761102641838,-286.71816532,0.00030136,7]
[392016567,1761102641847,-302.63570934,0.00030136,7]
[392016568,1761102641857,-156.38528391,0.00030136,7]
[392016571,1761102641866,-170.26874214,0.00030136,7]
[392016572,1761102641877,-394.13726671,0.00030136,7]
[392016575,1761102641886,-525.31729372,0.00030136,7]
[392016576,1761102641896,-500.0,0.00030136,7]
[392016579,1761102641906,-433.13454412,0.00030136,7]
[392016580,1761102641915,-376.86376356,0.00030136,7]
[392016583,1761102641924,-285.8611888,0.00030136,7]
[392016584,1761102641933,-222.53999091,0.00030136,7]
[392016587,1761102641943,-188.13134303,0.00030136,7]
[392016588,1761102641954,-163.07001784,0.00030136,7]
[392016590,1761102641963,-235.12868779,0.00030136,7]
[392016593,1761102641974,-500.0,0.00030136,7]
[392016595,1761102641984,-161.19190456,0.00030136,7]
[392016597,1761102641994,-310.31807726,0.00030136,7]
[392016599,1761102642003,-246.9595473,0.00030136,7]
[392016600,1761102642013,-305.6750953,0.00030136,7]
[392016603,1761102642022,-255.73843306,0.00030136,7]
[392016605,1761102642031,-355.85537143,0.00030136,7]
[392016607,1761102642041,-484.81908506,0.00030136,7]
[392016609,1761102642051,-580.77596234,0.00030136,7]
[392016610,1761102642060,-345.70979898,0.00030136,7]
[392016613,1761102642070,-443.7208532,0.00030136,7]
[392016614,1761102642079,-500.0,0.00030136,7]
[392016617,1761102642089,-310.56029153,0.00030136,7]
[392016619,1761102642098,-208.35979215,0.00030136,7]
[392016621,1761102642107,-500.0,0.00030136,7]
[392016622,1761102642117,-374.38007452,0.00030136,7]
[392016625,1761102642127,-258.72145882,0.00030136,7]
[392016627,1761102642136,-168.08342146,0.00030136,7]
[392016629,1761102642145,-220.96140396,0.00030136,7]
[392016631,1761102642155,-339.5087257,0.00030136,7]
[392016633,1761102642165,-192.48645907,0.00030136,7]
[392016635,1761102642176,-188.20051469,0.00030136,7]
[392016637,1761102642185,-261.15607341,0.00030136,7]
[392016639,1761102642194,-264.2734302,0.00030136,7]
[392016641,1761102642203,-375.42840152,0.00030136,7]
[392016643,1761102642213,-528.16277677,0.00030136,7]
[392016645,1761102642222,-422.00755294,0.00030136,7]
[392016646,1761102642231,-761.02,0.00030136,7]
[392016648,1761102642240,-182.21645852,0.00030136,7]
[392016650,1761102642249,-281.64495271,0.00030136,7]
[392016652,1761102642259,-381.85568789,0.00030136,7]
[392016654,1761102642267,-165.09232385,0.00030136,7]
[392016656,1761102642276,-177.44813654,0.00030136,7]
[392016658,1761102642286,-381.271218,0.00030136,7]
[392016660,1761102642295,-353.4328264,0.00030136,7]
[392016662,1761102642304,-205.63467688,0.00030136,7]
[392016664,1761102642313,-500.0,0.00030136,7]
[392016666,1761102642322,-167.06908319,0.00030136,7]
[392016668,1761102642332,-495.90907792,0.00030136,7]
[392016670,1761102642341,-500.0,0.00030136,7]
[392016672,1761102642350,-1872.5,0.00030136,7]
[392016674,1761102642360,-222.51023298,0.00030136,7]
[392016676,1761102642369,-204.53086713,0.00030136,7]
[392016678,1761102642378,-427.45011105,0.00030136,7]
[392016680,1761102642387,-263.92935556,0.00030136,7]
[392016682,1761102642397,-237.38378243,0.00030136,7]
[392016684,1761102642406,-275.97635961,0.00030136,7]
[392016686,1761102642415,-279.98327975,0.00030136,7]
[392016687,1761102642423,-383.4321509,0.00030136,7]
[392016689,1761102642433,-505.26522106,0.00030136,7]
[392016691,1761102642443,-500.0,0.00030136,7]
[392016693,1761102642452,-150.63750865,0.00030136,7]
[392016695,1761102642461,-193.94859614,0.00030136,7]
[392016697,1761102642471,-177.83067305,0.00030136,7]
[392016699,1761102642480,-500.0,0.00030136,7]
[392016701,1761102642492,-204.85090527,0.00030136,7]
[392016703,1761102642501,-252.10695275,0.00030136,7]
[392016705,1761102642510,-195.20001391,0.00030136,7]
[392016707,1761102642520,-281.40735665,0.00030136,7]
[392016709,1761102642530,-383.9352096,0.00030136,7]
[392016711,1761102642539,-373.93350273,0.00030136,7]
[392016713,1761102642553,-396.27058211,0.00030136,7]
[392016715,1761102642562,-500.0,0.00030136,7]
[392016717,1761102642571,-406.97293367,0.00030136,7]
[392016719,1761102642579,-381.48414187,0.00030136,7]
[392016721,1761102642588,-270.20670006,0.00030136,7]
[392016723,1761102642597,-360.92931251,0.00030136,7]
[392016725,1761102642605,-476.64485801,0.00030136,7]
[392016727,1761102642614,-500.0,0.00030136,2]
[392016729,1761102642623,-179.14732688,0.00030136,7]
[392016731,1761102642633,-488.54664983,0.00030136,7]
[392016732,1761102642642,-152.86857846,0.00030136,7]
[392016734,1761102642651,-218.47679941,0.00030136,7]
[392016736,1761102642661,-387.37913801,0.00030136,7]
[392016738,1761102642670,-389.90767542,0.00030136,7]
[392016740,1761102642679,-420.94893177,0.00030136,7]
[392016743,1761102642691,-471.04441665,0.00030136,7]
[392016744,1761102642701,-456.58174949,0.00030136,7]
[392016746,1761102642711,-343.20101635,0.00030136,7]
[392016749,1761102642724,-267.48724999,0.00030136,7]
[392016751,1761102642733,-263.51592051,0.00030136,7]
[392016754,1761102642741,-391.5357291,0.00030136,7]
[392016755,1761102642750,-443.34804789,0.00030136,7]
[392016756,1761102642761,-500.0,0.00030136,7]
[392016757,1761102642770,-500.0,0.00030136,7]
[392016758,1761102642778,-500.0,0.00030136,7]
[392016759,1761102642787,-154.82739698,0.00030136,7]
[392016760,1761102642796,-282.39492785,0.00030136,7]
[392016761,1761102642805,-500.0,0.00030136,7]
[392016762,1761102642814,-630.65447753,0.00030136,7]
[392016763,1761102642822,-188.90382904,0.00030136,7]
[392016764,1761102642831,-253.0730299,0.00030136,7]
[392016765,1761102642840,-198.23182065,0.00030136,7]
[392016766,1761102642849,-506.83352095,0.00030136,7]
[392016767,1761102642858,-228.03333693,0.00030136,7]
[392016768,1761102642867,-346.47400831,0.00030136,7]
[392016769,1761102642875,-354.74688904,0.00030136,7]
[392016770,1761102642885,-200.19375026,0.00030136,7]
[392016771,1761102642894,-463.53758527,0.00030136,7]
[392016772,1761102642902,-525.19208295,0.00030136,7]
[392016773,1761102642911,-383.41896121,0.00030136,7]
[392016776,1761102642921,-279.51456703,0.00030136,7]
[392016778,1761102642931,-500.0,0.00030136,7]
[392016780,1761102642941,-500.0,0.00030136,7]
[392016782,1761102642951,-169.12964423,0.00030136,7]
[392016784,1761102642959,-374.46127483,0.00030136,7]
[392016786,1761102642968,-284.04034375,0.00030136,7]
[392016788,1761102642978,-465.2051283,0.00030136,7]
[392016790,1761102642987,-186.01509429,0.00030136,7]
[392016792,1761102642996,-500.0,0.00030136,7]
[392016794,1761102643007,-500.0,0.00030136,7]
[392016796,1761102643016,-280.51710492,0.00030136,7]
[392016798,1761102643025,-500.0,0.00030136,7]
[392016800,1761102643034,-380.85331625,0.00030136,7]
[392016802,1761102643043,-460.62514168,0.00030136,7]
[392016804,1761102643053,-397.63327559,0.00030136,7]
[392016806,1761102643063,-392.15086227,0.00030136,7]
[392016808,1761102643072,-401.65619612,0.00030136,7]
[392016810,1761102643082,-383.26188039,0.00030136,7]
[392016812,1761102643092,-331.74504478,0.00030136,7]
[392016814,1761102643102,-3104.84,0.00030136,2]
[392016816,1761102643111,-468.15890753,0.00030136,7]
[392016818,1761102643120,-361.08894123,0.00030136,7]
[392016820,1761102643130,-308.25512341,0.00030136,7]
[392016822,1761102643139,-500.0,0.00030136,7]
[392016824,1761102643148,-500.0,0.00030136,7]
[392016826,1761102643158,-491.14265081,0.00030136,7]
[392016828,1761102643167,-242.26528224,0.00030136,7]
[392016830,1761102643176,-184.86412945,0.00030136,7]
[392016832,1761102643185,-322.29987435,0.00030136,7]
[392016834,1761102643195,-500.0,0.00030136,7]
[392016836,1761102643204,-221.92678929,0.00030136,7]
[392016838,1761102643213,-217.49797586,0.00030136,7]
[392016840,1761102643222,-413.09631767,0.00030136,7]
[392016842,1761102643231,-378.22950591,0.00030136,7]
[392016844,1761102643241,-163.12531131,0.00030136,7]
[392016846,1761102643250,-417.45835583,0.00030136,7]
[392016848,1761102643259,-283.42079311,0.00030136,7]
[392016850,1761102643267,-501.98302975,0.00030136,7]
[392016852,1761102643276,-446.57545684,0.00030136,7]
[392016854,1761102643286,-305.65718132,0.00030136,7]
[392016856,1761102643295,-339.12217062,0.00030136,7]
[392016857,1761102643304,-410.249458,0.00030136,7]
[392016860,1761102643314,-246.29275562,0.00030136,7]
[392016861,1761102643324,-491.7243919,0.00030136,7]
[392016863,1761102643334,-173.08691186,0.00030136,7]
[392016865,1761102643343,-328.77167624,0.00030136,7]
[392016867,1761102643353,-247.31846778,0.00030136,7]
[392016869,1761102643362,-241.69439862,0.00030136,7]
[392016871,1761102643371,-397.51300505,0.00030136,7]
[392016873,1761102643380,-315.29830206,0.00030136,7]
[392016875,1761102643389,-163.76180905,0.00030136,7]
[392016877,1761102643399,-386.5340649,0.00030136,7]
[392016879,1761102643407,-268.89927894,0.00030136,7]
[392016881,1761102643416,-378.36753295,0.00030136,7]
[392016883,1761102643425,-517.08746334,0.00030136,7]
[392016885,1761102643434,-183.70728979,0.00030136,7]
[392016887,1761102643443,-392.6280856,0.00030136,7]
[392016889,1761102643454,-160.39539873,0.00030136,7]
[392016891,1761102643464,-222.06809218,0.00030136,7]
[392016893,1761102643473,-173.48982923,0.00030136,7]
[392016895,1761102643482,-281.42143024,0.00030136,7]
[392016897,1761102643491,-385.92509597,0.00030136,7]
[392016899,1761102643499,-253.27809085,0.00030136,7]
[392016901,1761102643509,-486.23647,0.00030136,7]
[392016903,1761102643522,-310.67247293,0.00030136,7]
[392016904,1761102643531,-480.39252546,0.00030136,7]
[392016906,1761102643540,-415.57821034,0.00030136,7]
[392016908,1761102643550,-199.0,0.00030136,16]